Cogmind - Beta 13 @@@ ROGUE MODE // 2024.05.23 @ 00:48:55 Player: Some Pennies Result: Destroyed by D-53 Grenadier with Mini Grenade Launcher Performance ------------- Evolutions (1) 500 Regions Visited (4) 800 Robots Destroyed (79) 395 Value Destroyed (1593) 1593 Prototype IDs (9) 180 Alien Tech Used (0) 0 Bonus (60) 60 TOTAL SCORE: 3528 Bonus ------- Follower Combat Kills 60 Cogmind --------- Core Integrity 0/400 Matter 56/300 Energy 28/100 System Corruption 2% Temperature Cool (51) Movement Core (400) Ox7 Location -9/Mines Parts ------- > --- POWER (1) -------- (None) > --- PROPULSION (3) --- (None) > --- UTILITY (3) ------ Large Storage Unit Hacking Suite > --- WEAPON (2) ------- Advanced Beam Cannon > --- INVENTORY (15) --- Improved VTOL Module Improved VTOL Module Improved VTOL Module Improved VTOL Module Cooling System Medium Storage Unit ECM Suite Light Armor Plating Advanced Beam Cannon Improved Assault Rifle Mini Grenade Launcher Katana Peak State ------------ > --- POWER ------------ Cooled Ion Engine > --- PROPULSION ------- Improved VTOL Module Improved VTOL Module Improved VTOL Module > --- UTILITY ---------- Large Storage Unit Light Armor Plating Hacking Suite > --- WEAPON ----------- Katana > --- INVENTORY -------- Improved VTOL Module Cooling System Medium Storage Unit ECM Suite Medium Armor Plating Advanced Beam Cannon Advanced Beam Cannon Heavy Assault Rifle Improved Assault Rifle Improved Light Cannon Mini Grenade Launcher [Rating: 25] Favorites ----------- Power Cooled Ion Engine Engine Cooled Ion Engine Propulsion Light Treads Treads Light Treads Wheel Compact Wheel Hover Unit Hover Unit Flight Unit Flight Unit Utility Hacking Suite Device Seismic Detector Storage Large Storage Unit Processor Visual Processing Unit Hackware Hacking Suite Protection Medium Armor Plating Weapon Improved Assault Rifle Energy Gun Improved EM Shotgun Energy Cannon Advanced Beam Cannon Ballistic Gun Improved Assault Rifle Ballistic Cannon Improved Light Cannon Launcher Mini Grenade Launcher Special Weapon Mining Laser Slashing Weapon Katana Build | -11 -10 -10 -9 -9 ------- Run | Yrd Mat Min Mat Min Slots Evolved 2 | . . . 2 . Power . | . . . . . Propulsion 1 | . . . 1 . Utility 1 | . . . 1 . Weapon . | . . . . . Parts Attached 112 | 7 15 4 68 18 Power 13 | 1 2 . 10 . Engine 13 | 1 2 . 10 . Core . | . . . . . Reactor . | . . . . . Propulsion 34 | 3 6 2 20 3 Treads 22 | 1 6 2 13 . Leg . | . . . . . Wheel 2 | 2 . . . . Hover 3 | . . . 3 . Flight 7 | . . . 4 3 Utility 24 | 2 2 2 11 7 Device 6 | 1 1 2 1 1 Storage 6 | 1 1 . 2 2 Processor 1 | . . . 1 . Hackware 1 | . . . 1 . Protection 10 | . . . 6 4 Artifact . | . . . . . Weapon 41 | 1 5 . 27 8 Energy Gun 2 | . . . 2 . Energy Cannon 3 | . . . . 3 Ballistic Gun 22 | 1 5 . 14 2 Ballistic Cannon 6 | . . . 6 . Launcher 3 | . . . 1 2 Special Weapon 1 | . . . 1 . Impact Weapon . | . . . . . Slashing Weapon 4 | . . . 3 1 Piercing Weapon . | . . . . . Special Melee Weapon . | . . . . . Unidentified Prototypes 5 | . . . 5 . Parts Lost 18 | . . 3 7 8 Power 3 | . . 1 1 1 Propulsion 7 | . . 2 2 3 Utility 3 | . . . 1 2 Weapon 5 | . . . 3 2 Highest Loss Streak 6 | . . 3 6 3 To Critical Strikes . | . . . . . Average Slot Usage (%) 95 | . 96 92 96 86 Engine 10 | . 14 8 10 10 Treads 25 | . 23 27 26 21 Hover 1 | . . . 1 . Flight 2 | . . . 2 2 Device 3 | . 14 14 1 1 Storage 11 | . 13 14 11 11 Hackware 8 | . . . 10 11 Protection 6 | . . . 8 8 Ballistic Gun 17 | . 24 28 17 5 Ballistic Cannon 3 | . . . 4 6 Naked Turns . | . . . . . Heaviest Build 42 | 13 15 15 42 39 Greatest Support 60 | 32 40 40 60 60 Greatest Overweight (x) 10 | . . . 10 10 Average Overweight (x) . | . . . . . Largest Inventory Capacity 15 | 8 8 8 15 15 Average Capacity 11 | 7 7 8 11 14 Most Carried 15 | 5 8 8 15 15 Average Carried 10 | 3 7 7 11 14 Final Capacity 15 | 8 8 8 15 15 Final Carried 15 | 5 8 7 15 12 Class Distribution -------------------- 68% | Scavenger-Mutant 31% | Mutant Dominant Class ---------------- Mutant | -10/Materials Mutant | -10/Mines Scavenger-Mutant | -9/Materials Mutant | -9/Mines Resources | -11 -10 -10 -9 -9 ----------- Run | Yrd Mat Min Mat Min Matter Collected 2415 | 320 203 164 1611 117 Remotely . | . . . . . Salvage Created 2457 | 126 203 77 1851 200 Parts 161 | 14 18 3 122 4 Haulers Intercepted 6 | . . . 6 . Recyclers Shooed 3 | . . 2 1 . Parts Field Recycled . | . . . . . Retrieved Matter . | . . . . . Parts Self-Destructed . | . . . . . Prevented . | . . . . . Kills | -11 -10 -10 -9 -9 ------- Run | Yrd Mat Min Mat Min Combat Hostiles Destroyed 59 | . 8 2 36 13 Guns 38 | . 8 2 27 1 Cannons 12 | . . . 7 5 AOE 9 | . . . 2 7 Classes Destroyed 12 | 2 3 . 5 2 Worker 4 | . . . 3 1 Builder 4 | . . . 4 . Tunneler 3 | 3 . . . . Hauler 6 | . . . 6 . Recycler 5 | 1 . . 3 1 Operator 2 | . . . 2 . Watcher 6 | . 1 . 5 . Swarmer 20 | . 6 . 14 . Grunt 18 | . 2 2 12 2 Duelist 1 | . . . . 1 Sentry 10 | . . . 10 . Assembled 10 | . . . . 10 Best Kill Streak 7 | 3 2 2 7 7 Combat Bots Only 7 | . 2 2 7 7 Max Kills in Single Turn 3 | 1 1 1 3 2 Gunslinging 1 | . . . 1 . Exploded 2 | . . . 1 2 Melee . | . . . . . Uniques/NPCs Destroyed . | . . . . . Combat | -11 -10 -10 -9 -9 -------- Run | Yrd Mat Min Mat Min Hostile Shots Fired 474 | . 64 33 289 88 Missed 139 | . 13 11 89 26 Damage Taken 4211 | 1 462 297 2257 1194 Core 559 | 1 77 75 250 156 Absorbed by Shields . | . . . . . Ignored by Resistances 4 | . . . 4 . Regen/Repaired (Parts) 147 | . . . 147 . Core Remaining (%) 68 | 99 . 38 . . Volleys Fired 292 | 20 43 29 156 44 Largest 2 | 1 2 2 2 2 Hottest 107 | 20 40 40 100 107 Shots Fired 505 | 20 61 58 307 59 Gun 377 | 20 61 58 234 4 Cannon 112 | . . . 68 44 Launcher 14 | . . . 3 11 Special 2 | . . . 2 . Kinetic 464 | 20 61 58 302 23 Thermal 27 | . . . 2 25 Explosive 14 | . . . 3 11 Electromagnetic . | . . . . . Robot Hit Streak 26 | 6 3 15 26 15 Robot Miss Streak 8 | 2 8 5 5 3 Penetration Max . | . . . . . Secondary Targets 5 | . 1 1 3 . Max Gunslinging Chain 1 | . 1 1 1 . Shots Hit Robots 304 | 12 23 37 193 39 Core Hits 136 | 5 14 10 81 26 Critical Kills 1 | . . . 1 . Critical Parts Destroyed . | . . . . . Critical Strikes 3 | . . . 3 . Destroy 1 | . . . 1 . Blast 2 | . . . 2 . Melee Attacks 4 | . . . 3 1 Impact . | . . . . . Slashing 4 | . . . 3 1 Piercing . | . . . . . Sneak Attacks . | . . . . . Combat Hostiles . | . . . . . Follow-up Attacks . | . . . . . Damage Inflicted 5275 | 150 249 305 3328 1243 Guns 3004 | 146 249 305 2258 46 Cannons 1409 | . . . 708 701 Explosions 807 | . . . 311 496 Melee 35 | . . . 35 . Ramming 20 | 4 . . 16 . Kinetic 4044 | 146 249 305 2966 378 Thermal 369 | . . . . 369 Explosive 807 | . . . 311 496 Electromagnetic . | . . . . . Impact . | . . . . . Slashing 35 | . . . 35 . Piercing . | . . . . . Highest Corruption 2 | . 1 1 2 2 Average Corruption 1 | . 1 1 2 2 Corruption Purged . | . . . . . Corruption Blocked . | . . . . . Effects 47 | . 1 3 35 8 Message Errors 12 | . . . 10 2 Matter Fused 12 | . . 1 9 2 Heat Flow Errors 6 | . . 2 4 . Energy Discharges 9 | . 1 . 6 2 Parts Fused 1 | . . . 1 . Data Loss (minor) 3 | . . . 2 1 Data Loss (major) 2 | . . . 2 . Alerts 1 | . . . 1 . Weapon Failures 1 | . . . . 1 Overload Shots . | . . . . . Overflow Damage 119 | . . . 52 67 Projectiles 69 | . . . 24 45 Explosions 50 | . . . 28 22 Melee . | . . . . . Knockbacks 13 | . . . 6 7 Impact . | . . . . . Kinetic 13 | . . . 6 7 Secondary . | . . . . . Self-Inflicted Damage 63 | 1 . . . 62 Shots 2 | . . . . 2 Rammed 4 | 3 . . 1 . Targets Rammed 5 | 3 . . 2 . Kicked . | . . . . . Crushed 1 | . . . 1 . Highest Temperature 281 | . 16 281 245 270 Average Temperature 45 | . 4 67 28 91 Received Heat Transfer 1120 | . 69 171 678 202 Siege Activations . | . . . . . Robots Corrupted . | . . . . . Combat Hostiles . | . . . . . Parts Fried . | . . . . . Impact Corruptions . | . . . . . Robots Melted . | . . . . . Combat Hostiles . | . . . . . Parts Melted . | . . . . . Heat Transferred 666 | . . . . 666 Parts Sabotaged . | . . . . . Parts Stolen . | . . . . . Parts Stripped . | . . . . . Power Chain Reactions . | . . . . . Alert | -11 -10 -10 -9 -9 ------- Run | Yrd Mat Min Mat Min Peak Influence 396 | 20 220 111 396 137 Initial 40 | . 13 40 35 5 Average 123 | 7 106 75 144 46 Maximum Alert Level 1 | . 1 . 1 . Low Security (%) 76 | 100 80 100 69 100 Level 1 23 | . 19 . 30 . Level 2 . | . . . . . Level 3 . | . . . . . Level 4 . | . . . . . Level 5 . | . . . . . High Security . | . . . . . Max Security . | . . . . . Squads Dispatched 6 | . . . 6 . Investigation 5 | . . . 5 . Extermination . | . . . . . Reinforcement 1 | . . . 1 . Assault . | . . . . . Garrison . | . . . . . Intercept . | . . . . . Searches Triggered . | . . . . . Construction Impeded . | . . . . . Haulers Reinforced . | . . . . . Active Scanning Responses . | . . . . . Cargo Convoy Interrupts . | . . . . . Stealth | -11 -10 -10 -9 -9 --------- Run | Yrd Mat Min Mat Min Distress Signals 8 | . 1 . 7 . Communications Jammed . | . . . . . Distress Signals . | . . . . . Times Spotted 82 | . 14 6 48 14 Peak Tracking Total 6 | . 4 2 6 4 Tactical Retreats 2 | . 2 . . . Traps | -11 -10 -10 -9 -9 ------- Run | Yrd Mat Min Mat Min Traps Triggered 3 | . . . 3 . Indirectly . | . . . . . Trap Hack Attempts . | . . . . . Triggered . | . . . . . Disarmed . | . . . . . Reprogrammed . | . . . . . Reused . | . . . . . Traps Extracted . | . . . . . Installed . | . . . . . Triggered . | . . . . . Machines | -11 -10 -10 -9 -9 ---------- Run | Yrd Mat Min Mat Min Machines Disabled 3 | . . . 3 . Max in Single Turn 1 | . . . 1 . Machines Repaired . | . . . . . Machines Dismantled . | . . . . . Machines Sabotaged . | . . . . . Overloaded Fab Kills . | . . . . . Hacking | -11 -10 -10 -9 -9 --------- Run | Yrd Mat Min Mat Min Machines Accessed 22 | . 6 . 16 . Terminals 16 | . 5 . 11 . Fabricators . | . . . . . Repair Stations 2 | . . . 2 . Recycling Units 2 | . 1 . 1 . Scanalyzers 2 | . . . 2 . Garrison Access . | . . . . . Total Hacks 73 | . 15 . 58 . Successful 44 | . 6 . 38 . Failed 28 | . 8 . 20 . Catastrophic 9 | . 4 . 5 . Database Lockouts 1 | . 1 . . . Manual 25 | . 7 . 18 . Terminals 52 | . 14 . 38 . Fabricators . | . . . . . Repair Stations 4 | . . . 4 . Recycling Units 2 | . 1 . 1 . Scanalyzers 15 | . . . 15 . Garrison Access . | . . . . . Terminal Hacks 23 | . 5 . 18 . Robot Analysis 2 | . 1 . 1 . Prototype ID Bank 2 | . 1 . 1 . Branch Access Points 1 | . . . 1 . Emergency Access Points 2 | . . . 2 . Terminal Index 1 | . . . 1 . Recycling Unit Index 1 | . . . 1 . Scanalyzer Index 1 | . . . 1 . Unreport Threat 3 | . . . 3 . Locate Traps 5 | . 2 . 3 . Recall Investigation 1 | . . . 1 . Hauler Manifests 1 | . . . 1 . Zone Layout 3 | . 1 . 2 . Fabricator Hacks . | . . . . . Repair Station Hacks 4 | . . . 4 . Scan Component 2 | . . . 2 . Repair 2 | . . . 2 . Recycling Unit Hacks 2 | . 1 . 1 . Report Inventory 1 | . 1 . . . Retrieve Components 1 | . . . 1 . Scanalyzer 15 | . . . 15 . Insert Component 7 | . . . 7 . Analyze 8 | . . . 8 . Garrison Access Hacks . | . . . . . Unauthorized Hacks . | . . . . . Terminals . | . . . . . Fabricators . | . . . . . Repair Stations . | . . . . . Recycling Units . | . . . . . Scanalyzers . | . . . . . Garrison Access . | . . . . . Data Cores Recovered . | . . . . . Used . | . . . . . Hacking Detections 21 | . 5 . 16 . Full Trace Events 8 | . 2 . 6 . Feedback Events 1 | . 1 . . . Corruption 1 | . 1 . . . Feedback Blocked . | . . . . . Robot Schematics Acquired . | . . . . . Robots Built . | . . . . . Authchips . | . . . . . Time . | . . . . . Total Robot Build Rating . | . . . . . Part Schematics Acquired 7 | . . . 7 . Parts Built . | . . . . . Authchips . | . . . . . Time . | . . . . . Total Part Build Rating . | . . . . . Parts Repaired 2 | . . . 2 . Time 77 | . . . 77 . Parts Recycled . | . . . . . Recycled Matter . | . . . . . Retrieved Matter . | . . . . . Retrieved Components 9 | . . . 9 . Parts Scanalyzed 7 | . . . 7 . Part Schematics Acquired 7 | . . . 7 . Parts Damaged . | . . . . . Bothacking | -11 -10 -10 -9 -9 ------------ Run | Yrd Mat Min Mat Min Used RIF Installer . | . . . . . Robots Hacked . | . . . . . Non-combat . | . . . . . Combat . | . . . . . Robot Hacks Applied . | . . . . . Relay Couplers Released . | . . . . . Fabnet Peak Effective % . | . . . . . Robots Rewired . | . . . . . Allies Hacked . | . . . . . Hacks Repelled . | . . . . . Allies | -11 -10 -10 -9 -9 -------- Run | Yrd Mat Min Mat Min Total Allies 2 | . . 2 . . Largest Group 2 | . . 2 . . Highest-Rated Group 36 | . . 36 . . Highest-Rated Ally 31 | . . 31 . . Total Orders . | . . . . . Ally Attacks 10 | . . 10 . . Total Damage 130 | . . 130 . . Kills 2 | . . 2 . . Allies Corrupted . | . . . . . Allies Melted . | . . . . . Intel | -11 -10 -10 -9 -9 ------- Run | Yrd Mat Min Mat Min Robot Analysis Total 2 | . 1 . 1 . Derelict Logs Recovered 1 | . . 1 . . Drone Launches . | . . . . . Drone Recoveries . | . . . . . Exploration | -11 -10 -10 -9 -9 ------------- Run | Yrd Mat Min Mat Min Turns Passed 5205 | 135 630 360 3635 445 Spaces Moved 2559 | 70 340 174 1795 180 Core 27 | 3 . . 15 9 Treads 2289 | 9 257 174 1696 153 Legs . | . . . . . Wheels 141 | 58 83 . . . Hover 49 | . . . 49 . Flight 53 | . . . 35 18 Fastest Speed 50 | 50 100 160 117 99 Average Speed 159 | 105 145 160 162 173 Slowest Speed 550 | 160 160 160 550 550 Overloaded Moves . | . . . . . Propulsion Burnouts . | . . . . . Robots Hopped . | . . . . . Cave-ins Triggered . | . . . . . Exploration Rate (%) 52 | 6 54 67 96 41 Regions Visited 4 Branch Regions 2 Pre-discovered Areas 1 | . . 1 . . Known Exits Taken 1 | . . . 1 . Unknown Exits Taken 3 | 1 1 1 . . Scrap Searched 2 | . . 1 . 1 Spaces Dug 4 | . . . 3 1 Terrain Destroyed 110 | . . . 27 83 Melee 3 | . . . 2 1 Projectile 8 | . . . 8 . AOE 99 | . . . 17 82 Terrain Rammed . | . . . . . Walls Destroyed . | . . . . . Machines Disabled . | . . . . . Actions | -11 -10 -10 -9 -9 --------- Run | Yrd Mat Min Mat Min Total 3207 | 110 421 208 2219 249 Wait 106 | . 1 1 104 . Move 2555 | 69 339 173 1794 180 Hop . | . . . . . Pick Up 59 | 11 11 1 36 . Fast Attach 25 | . 3 . 21 1 Attach 29 | 6 1 2 13 7 Detach 7 | . . . 2 5 Swap 59 | 1 11 2 35 10 Drop 66 | . 12 . 53 1 Fire 292 | 20 43 29 156 44 Melee 4 | . . . 3 1 Ram 3 | 3 . . . . Kick . | . . . . . Crush 2 | . . . 2 . Escape Stasis . | . . . . . Rewire . | . . . . . Trap . | . . . . . Miscellaneous . | . . . . . Route ------- -11/Scrapyard -10/Materials (discovered 3 exits: *Mat x2 / [*Min]) -10/Mines -9/Materials (discovered 4 exits: [*Mat x3] / *Min) -9/Mines (discovered 1 exit: [*Mat]) History --------- Turn | Location | Event 41 | -11/Scrapyard | Discovered new exit (range 15) 136 | -11/Scrapyard | Entered Materials 308 | -10/Materials | Discovered new exit (range 11) 326 | -10/Materials | Build established: Mutant 355 | -10/Materials | Central database locked down 511 | -10/Materials | Discovered new exit (range 5) 663 | -10/Materials | Discovered new exit (range 10) 766 | -10/Materials | Entered Mines 801 | -10/Mines | Met a Derelict bent on vengeance 861 | -10/Mines | Learned location of Zion (-7) 970 | -10/Mines | Core integrity fell below 50% 1004 | -10/Mines | Lost 3 parts (1p2n) 1109 | -10/Mines | Discovered new exit (range 7) 1126 | -10/Mines | Entered Materials 1126 | -9/Materials | Evolved 2 slots: Propulsion x1, Utility x1 1315 | -9/Materials | Lost 6 parts (1p2n1u2w) 1662 | -9/Materials | Build established: Scavenger-Mutant 1767 | -9/Materials | Discovered new exit (range 12) 2076 | -9/Materials | Repaired Lgt. Treads 2260 | -9/Materials | Core integrity fell below 50% 2289 | -9/Materials | Destroyed 7 combat bots 2492 | -9/Materials | Discovered new exit (range 10) 2500 | -9/Materials | Identified exit to Mines 2796 | -9/Materials | Repaired Imp. Assault Rifle 3453 | -9/Materials | Discovered new exit (range 11) 4227 | -9/Materials | Discovered new exit (range 15) 4761 | -9/Materials | Entered Mines 4937 | -9/Mines | Discovered new exit (range 7) 4971 | -9/Mines | Core integrity fell below 20% 5001 | -9/Mines | Assembled infested the area 5006 | -9/Mines | Assisted by a Guerilla fighting off Assembled 5087 | -9/Mines | Destroyed 7 combat bots 5136 | -9/Mines | Lost 3 parts (2n1u) 5206 | -9/Mines | Destroyed by D-53 Grenadier with Mini Grenade Launcher Last Messages --------------- 05131_ System corrupted: Matter fused (-7). 05144_ The unstable cave ceiling collapses. 05166_ K-01 Serf collects debris. 05168_ Dropped Imp. Light Cannon. 05171_ O=/BTXSK%ZPEH 1=5I7VN2OW KOE7:GNY5YG 05185_ The unstable cave ceiling collapses. 05188_ U-05 Engineer destroyed. 05190_ Cld. Ion Engine destroyed. 05191_ U-05 Engineer lays Concrete. 05196_ The unstable cave ceiling collapses. 05196_ U-05 Engineer lays Concrete. 05198_ Med. Armor Plating destroyed. 05198_ U-05 Engineer builds a Wall. 05200_ Hvy. Assault Rifle destroyed. 05202_ System corrupted: Component data lost. 05202_ The unstable cave ceiling collapses. 05203_ U-05 Engineer lays Concrete. 05205_ Destroyed Shock Absorption System. 05205_ U-05 Engineer lays Concrete. 05206_ U-05 Engineer builds a Wall. Map ----- +----------------------------------------------------+ | ???????????????????????????????????????????? | | ???????????????????????????????????????????? | | ???????????????????????????????????????????? | | ???????????????????????????????????????????? | | ???????????????????????????????????????????? | | ???????????????????????????????????????????? | | ???????????????????????????????????????????? | | ????? ??????????????????#?????????????????? | | ???? ?????????????????? ?????????????????? | | ???## ??????? ?????????? ?????????????????? | | ??## ####?? ?###???# #????????????????? | | ??# #?# ??# ??? #????????????????? | | ??# ## ??# #???# #????????????????? | | ??# ???# #???# ????????????????? | | ?## ????# #### #????????????????? | | ?? ! ! #???## # # #????????????????? | | ??# ???## = ####?????????????? | | ??# # !????# !=% #???###### ???? | | ??# % ?????# ! #??# ????? | | ??# ??????# %%#### #?# """ ????? | | ???# ######?# u##??# ## """ ???? | | ???## # ### #=#??# """ ?? | | ???# %% # < ##?# #????? | | ???## # # #### # ##????? | | ????## # ## ## ##?????? | | ?????# ### # @ #?# #?# #??????? | | ?????# ## ## #??# ##??????? | | ?????# ## ## #???###???????? | | ?????# ### d #### ###???????????? | | ?????# #?### #### ##??????????? | | ?????# #?#### ##### #??????????? | | ????## ### # #?## #??????????? | | ????# ## ### """ #??????????? | | ????# # ## """ ##??????????? | | ????## ## """ #???????????? | | ?????#### ### ] #???????????? | | ????????# ## ##"###### #???????????? | | ????????###### ##????## #???????????? | | ????????????### #?????# #???????????? | | ??????????????### #????## ##???????????? | | ????????????????## ####### #????????????? | | ?????????????????#### #????????????? | | ????????????????????# #????????????? | | ????????????????????# ## #???????????? | | ???????#####???###### ### #####?????????? | | ????#### ##??# #?###### ##????????? | | ???## ##?# #????## ##???????? | | ???# ### #######???## #???????? | | ???# """ ########### #???????? | | ???## """ ##???????? | +----------------------------------------------------+ Best States ------------- Heat Dissipation 50 Energy Generation 14 Energy Capacity 280 Matter Stores 300 Matter Capacity 300 Sight Range 18 Terrain Scan Range 16 Terrain Scan Density 10 Armor Coverage 225 Resistance: EM 15 Evasion (%) 40 Recoil Reduction 3 Offensive Hacking 10 Item Schematics ----------------- ECM Suite | -9/Materials | Scanalyzed Mni. Grenade Launcher | -9/Materials | Scanalyzed Imp. EM Shotgun | -9/Materials | Scanalyzed Mining Laser | -9/Materials | Scanalyzed Imp. VTOL Module | -9/Materials | Scanalyzed Med. Storage Unit | -9/Materials | Scanalyzed Imp. Assault Rifle | -9/Materials | Scanalyzed Robot Schematics ------------------ None Fabricated ------------ Nothing Alien Tech Used ----------------- None Achievements -------------- None Challenges ------------ None Game ------ Seed TransportZhirovLance Manual? 0 Play Time 00:41:55 Cumulative 83.3 hours Start 2024.05.22 @ 22:58:23 End 2024.05.23 @ 00:48:55 Sessions 3 Manual Loads 0 Difficulty Rogue Special Mode None Game No. 77 Rogue 72 Adventurer 5 Explorer 0 Win Type - Total 1 Types 1/0/0/0/0/0/0/0/0 Lore% 38 Gallery% 50 Achievement% 37 Wizard Run 0 Options --------- Layout 2 ASCII 0 Keyboard 0 Movement Mouse Keybinds 0 Fullscreen 2 Font 24/Smallcaps Map View 50x44 Zoom Use 0% Tactical HUD 1 Map Filters NONE Filters NONE Steam 1 RUN: 063c0a08-17c7-4add-89ac-e89f82c0a3f9